bitfinex-derivatives/quotes_BTCF0:USTF0_20250720
["timestamp","ask_amount","ask_price","bid_price","bid_amount"]
[1753024371710,0.29996,118580.0,118570.0,1.08945952]
[1753024371910,0.29996,118580.0,118570.0,1.09045952]
[1753024372111,0.32413,118580.0,118570.0,1.09045952]
[1753024372301,0.37218,118580.0,118570.0,1.43045952]
[1753024372704,0.37218,118580.0,118570.0,1.09045952]
[1753024373211,0.37218,118580.0,118570.0,1.09145952]
[1753024373412,0.37218,118580.0,118570.0,1.43145952]
[1753024373612,0.37218,118580.0,118570.0,1.09145952]
[1753024373811,0.37218,118580.0,118570.0,1.47145952]
[1753024374010,0.121,118580.0,118570.0,1.47145952]
[1753024375716,0.121,118580.0,118570.0,1.53186535]
[1753024376705,0.121,118580.0,118570.0,1.67196535]
[1753024380609,0.121,118580.0,118570.0,1.61155952]
[1753024380918,0.121,118580.0,118570.0,1.68708337]
[1753024382018,0.121,118580.0,118570.0,1.30708337]
[1753024382322,0.121,118580.0,118570.0,2.21868337]
[1753024383819,0.121,118580.0,118570.0,2.00352108]
[1753024384014,0.121,118580.0,118570.0,2.21868337]
[1753024385122,0.121,118580.0,118570.0,2.07858337]
[1753024391425,0.07601761,118580.0,118570.0,2.13908817]
[1753024391723,0.24155,118600.0,118590.0,0.4175229]
[1753024391724,0.41269,118600.0,118590.0,0.4175229]
[1753024391923,0.37269,118600.0,118590.0,1.58484519]
[1753024393318,0.37269,118600.0,118590.0,1.64534842]
[1753024394228,0.37369,118600.0,118590.0,1.64634842]
[1753024395326,0.37369,118600.0,118590.0,1.86151071]
[1753024395828,0.3187,118600.0,118590.0,1.86151071]
[1753024396128,0.3187,118600.0,118590.0,2.19151071]
[1753024396729,0.3187,118600.0,118590.0,2.49180748]
[1753024397422,0.121,118600.0,118590.0,2.49180748]
[1753024398028,0.121,118600.0,118590.0,2.56733133]
[1753024398419,0.121,118600.0,118590.0,2.49180748]
[1753024398624,0.12,118600.0,118590.0,2.49080748]
[1753024398833,0.121,118600.0,118590.0,2.49380748]
[1753024399423,0.121,118600.0,118590.0,2.49480748]
[1753024400330,0.16553,118620.0,118610.0,0.3830246]
[1753024400633,0.26553,118620.0,118610.0,1.61067074]
[1753024400828,0.36269,118620.0,118610.0,1.61067074]
[1753024401932,0.36469,118620.0,118610.0,1.61167074]
[1753024402227,0.36569,118620.0,118610.0,1.55114689]
[1753024402423,0.36569,118620.0,118610.0,1.68003015]
[1753024402932,0.36569,118620.0,118610.0,1.08887015]
[1753024403431,0.36569,118620.0,118610.0,1.63045015]
[1753024403631,0.36469,118620.0,118610.0,1.63045015]
[1753024403931,0.36469,118620.0,118610.0,1.68095015]
[1753024404332,0.36469,118620.0,118610.0,1.68095911]
[1753024404532,0.36269,118620.0,118610.0,1.68195911]
[1753024405128,0.36269,118620.0,118610.0,0.53980866]
[1753024405332,0.36269,118620.0,118610.0,1.19139163]
[1753024405529,0.5312204,118620.0,118610.0,1.19139163]
[1753024405728,1.31063641,118620.0,118610.0,0.79856051]
[1753024405929,1.31063641,118620.0,118610.0,0.30045029]
[1753024406130,1.31063641,118620.0,118610.0,0.89145029]
[1753024406728,1.31063641,118620.0,118610.0,0.29945029]
[1753024406932,1.31063641,118620.0,118610.0,0.89041029]
[1753024407133,1.06063641,118620.0,118610.0,0.89041029]
[1753024407532,1.06063641,118620.0,118610.0,0.88841029]
[1753024407729,1.06163641,118620.0,118610.0,0.88841029]
[1753024408835,1.2767987,118620.0,118610.0,0.12890569]
[1753024409031,0.4290546,118610.0,118600.0,0.06056913]
[1753024409239,1.13396283,118610.0,118600.0,0.1685588]
[1753024409432,1.55258683,118610.0,118600.0,0.1685588]
[1753024410233,1.33742454,118610.0,118600.0,0.1695588]
[1753024410537,1.33742454,118610.0,118600.0,0.23649054]
[1753024411346,1.33742454,118610.0,118600.0,0.23749054]
[1753024411746,1.33742454,118610.0,118600.0,0.06893174]
[1753024412143,1.33742454,118610.0,118600.0,0.06793174]
[1753024412446,1.33842454,118610.0,118600.0,0.06693174]
[1753024412646,0.2589789,118600.0,118590.0,1.07732032]
[1753024412843,0.9198689,118600.0,118590.0,1.07732032]
[1753024413946,0.9198689,118600.0,118590.0,1.03518022]
[1753024414546,0.9198689,118600.0,118590.0,1.03718022]
[1753024414745,0.9198689,118600.0,118590.0,0.82201793]
[1753024414941,0.9198689,118600.0,118590.0,0.65444913]
[1753024415343,0.9198689,118600.0,118590.0,0.72262617]
[1753024415541,0.9198689,118600.0,118590.0,0.89119937]
[1753024415740,0.9198689,118600.0,118590.0,0.83063024]
[1753024416342,0.9198689,118600.0,118590.0,1.04579253]
[1753024416543,0.9198689,118600.0,118590.0,0.66205704]
[1753024417840,1.0885089,118600.0,118590.0,0.66205704]
[1753024418947,1.0885089,118600.0,118590.0,0.72260606]
[1753024422052,1.0885089,118600.0,118590.0,0.13172606]
[1753024422348,0.9198689,118600.0,118590.0,0.13172606]
[1753024422654,1.89443119,118600.0,118590.0,0.003]
[1753024422847,0.23567,118580.0,118570.0,0.24010135]
[1753024423053,0.93897353,118580.0,118570.0,1.13487364]
[1753024423252,0.93897353,118580.0,118570.0,1.04602364]
[1753024423552,0.93897353,118580.0,118570.0,0.98547462]
[1753024423748,0.93897353,118580.0,118570.0,1.04153462]
[1753024424352,0.93897353,118580.0,118570.0,1.10798608]
[1753024424552,0.93897353,118580.0,118570.0,1.19393608]
[1753024424750,0.93897353,118580.0,118570.0,1.23798608]
[1753024425148,0.93897353,118580.0,118570.0,1.31096608]
[1753024425149,0.77038613,118580.0,118570.0,1.31096608]
[1753024425451,0.14907613,118580.0,118570.0,2.00176608]
[1753024425646,0.7645058,118600.0,118590.0,0.3433732]
[1753024425647,0.32616,118600.0,118590.0,0.3433732]
[1753024425851,0.013,118600.0,118590.0,1.83534008]
[1753024426053,0.013,118600.0,118590.0,1.55969549]
[1753024426248,0.013,118600.0,118590.0,1.8505126]
[1753024426451,0.01,118600.0,118590.0,1.8505126]
[1753024426649,0.011,118600.0,118590.0,1.63535031]
[1753024426850,0.03584,118600.0,118590.0,1.63535031]
[1753024427355,0.03584,118600.0,118590.0,1.63531031]
[1753024428155,0.03484,118600.0,118590.0,1.63531031]
[1753024428457,0.03784,118600.0,118590.0,1.63631031]
[1753024429054,0.03584,118600.0,118590.0,1.63531031]
[1753024429655,0.03584,118600.0,118590.0,1.55965549]
[1753024431759,0.03584,118600.0,118590.0,0.96893549]
[1753024431953,0.08205,118600.0,118590.0,1.55957549]
[1753024432660,0.08205,118600.0,118590.0,1.63522236]
[1753024433258,0.03584,118600.0,118590.0,1.63522236]
[1753024433460,0.03584,118600.0,118590.0,1.96522236]
[1753024433661,0.011,118600.0,118590.0,1.96522236]
[1753024433855,0.011,118600.0,118590.0,1.63522236]
[1753024434063,0.011,118600.0,118590.0,2.14473778]
[1753024434363,0.011,118600.0,118590.0,2.61127117]
[1753024434860,0.011,118600.0,118590.0,2.61123117]
[1753024435062,0.24786,118620.0,118610.0,0.2573947]
[1753024435262,0.28786,118620.0,118610.0,1.61560862]
[1753024436162,0.28786,118620.0,118610.0,1.55507699]
[1753024436457,0.20091,118620.0,118610.0,1.55507699]
[1753024436662,0.20091,118620.0,118610.0,1.55607699]
[1753024437260,0.13,118620.0,118610.0,1.55607699]
[1753024437964,0.13,118620.0,118610.0,1.55707699]
[1753024438164,0.13,118620.0,118610.0,1.87707699]
[1753024438464,0.13,118620.0,118610.0,1.89707699]
[1753024438666,0.13,118620.0,118610.0,1.97274266]
[1753024438865,0.13,118620.0,118610.0,2.33354266]
[1753024439263,0.33414,118640.0,118630.0,0.2546263]
[1753024439566,0.17414,118640.0,118630.0,1.56559981]
[1753024439758,0.27484,118640.0,118630.0,1.56559981]
[1753024440363,0.27484,118640.0,118630.0,1.70569981]
[1753024440667,0.27484,118640.0,118630.0,1.56559981]
[1753024440862,0.27484,118640.0,118630.0,1.50512859]
[1753024441367,0.27484,118640.0,118630.0,1.50508859]
[1753024441866,0.27584,118640.0,118630.0,1.50508859]
[1753024442068,0.27584,118640.0,118630.0,1.57175502]
[1753024442367,0.27584,118640.0,118630.0,1.63215423]
[1753024442963,0.10232,118640.0,118630.0,1.99215423]
[1753024443163,0.10232,118640.0,118630.0,2.29255502]
[1753024443364,0.12702,118640.0,118630.0,2.29255502]
[1753024443975,0.17514,118640.0,118630.0,2.29255502]
[1753024444378,0.17514,118640.0,118630.0,1.93255502]
[1753024444868,0.17514,118640.0,118630.0,1.94299627]
[1753024445268,0.17514,118640.0,118630.0,2.00334303]
[1753024446668,0.17514,118640.0,118630.0,2.31334303]
[1753024447270,0.17514,118640.0,118630.0,2.00334303]
[1753024451373,0.27584,118640.0,118630.0,1.42714074]
[1753024451574,0.27584,118640.0,118630.0,1.64230303]
[1753024454574,0.17514,118640.0,118630.0,1.64230303]
[1753024455375,0.17514,118640.0,118630.0,1.58195627]
[1753024455677,0.17514,118640.0,118630.0,1.64238492]
[1753024456176,0.17514,118640.0,118630.0,1.58195627]
[1753024457875,0.17514,118640.0,118630.0,1.64239752]
[1753024458374,0.17514,118640.0,118630.0,1.58195627]
[1753024459480,0.17514,118640.0,118630.0,2.27275627]
[1753024460178,0.38484,118660.0,118650.0,0.3386579]
[1753024460378,0.37484,118660.0,118650.0,1.50462019]
[1753024460581,0.37484,118660.0,118650.0,1.56507344]
[1753024462274,0.37584,118660.0,118650.0,1.56507344]
[1753024463887,0.37584,118660.0,118650.0,1.50462019]
[1753024464087,0.37584,118660.0,118650.0,1.58020922]
[1753024466887,0.27514,118660.0,118650.0,1.94100922]
[1753024467103,0.22702,118660.0,118650.0,1.94100922]
[1753024467389,0.22702,118660.0,118650.0,2.31100922]
[1753024468679,0.121,118660.0,118650.0,2.23542019]
[1753024469383,0.121,118660.0,118650.0,2.31100922]
[1753024470494,0.121,118660.0,118650.0,2.23594693]
[1753024470791,0.121,118660.0,118650.0,2.45110922]
[1753024472491,0.121,118660.0,118650.0,2.23594693]
[1753024472692,0.121,118660.0,118650.0,2.45110922]
[1753024475093,0.121,118660.0,118650.0,2.31100922]
[1753024475688,0.12,118660.0,118650.0,2.31100922]
[1753024475991,0.12,118660.0,118650.0,2.31300922]
[1753024476293,0.12,118660.0,118650.0,2.23742019]
[1753024477092,0.12,118660.0,118650.0,2.31300639]
[1753024477593,0.03929115,118680.0,118670.0,0.3116795]
[1753024477785,0.142663,118690.0,118680.0,0.3313653]
[1753024477987,0.272663,118690.0,118680.0,1.12248988]
[1753024478186,0.13,118690.0,118680.0,1.51796508]
[1753024478491,0.15389,118690.0,118680.0,1.19796508]
[1753024478790,0.15389,118690.0,118680.0,1.12248988]
[1753024479191,0.29874,118690.0,118680.0,0.90632759]
[1753024479390,0.29874,118690.0,118680.0,0.58880724]
[1753024479595,0.4671711,118690.0,118680.0,0.62113]
[1753024479786,0.5474711,118690.0,118680.0,0.84994007]
[1753024479987,0.5474711,118690.0,118680.0,1.06810236]
[1753024480190,0.5474711,118690.0,118680.0,1.07010236]
[1753024481796,0.5474711,118690.0,118680.0,1.11785236]
[1753024481983,0.32452,118690.0,118680.0,1.36516465]
[1753024482184,0.32452,118690.0,118680.0,1.36016465]
[1753024482395,0.32452,118690.0,118680.0,1.72196465]
[1753024483494,0.5474711,118690.0,118680.0,1.72196465]
[1753024483989,0.5474711,118690.0,118680.0,1.50680236]
[1753024484698,0.37904,118690.0,118680.0,1.50680236]
[1753024484990,0.37904,118690.0,118680.0,1.66159988]
[1753024484991,0.2113,118690.0,118680.0,1.66159988]
[1753024485189,0.13,118690.0,118680.0,1.72196465]
[1753024485383,0.13,118690.0,118680.0,2.04196465]
[1753024486292,0.13,118690.0,118680.0,1.98159988]
[1753024488791,0.04504,118690.0,118680.0,1.98159988]
[1753024489195,0.01756467,118690.0,118680.0,2.12169988]
[1753024489604,0.29024,118710.0,118700.0,0.1684169]
[1753024489794,0.26024,118710.0,118700.0,1.73388286]
[1753024490092,0.26024,118710.0,118700.0,2.09468286]
[1753024490494,0.26024,118710.0,118700.0,1.75468286]
[1753024490684,0.26024,118710.0,118700.0,1.69435332]
[1753024490885,0.26024,118710.0,118700.0,2.07978297]
[1753024491090,0.26024,118710.0,118700.0,2.09978297]
[1753024491491,0.26024,118710.0,118700.0,1.77984764]
[1753024491690,0.26024,118710.0,118700.0,2.14984764]
[1753024491996,0.26024,118710.0,118700.0,1.77976764]
[1753024492388,0.29203,118710.0,118700.0,1.78076764]
[1753024493198,0.29203,118710.0,118700.0,1.70533799]
[1753024493493,0.34655,118710.0,118700.0,1.77295252]
[1753024493792,0.35904,118710.0,118700.0,1.77295252]
[1753024494096,0.35904,118710.0,118700.0,1.84838217]
[1753024494294,0.35904,118710.0,118700.0,2.22838217]
[1753024494597,0.23635,118710.0,118700.0,2.15295252]
[1753024494799,0.23635,118710.0,118700.0,2.15911252]
[1753024495299,0.25999,118710.0,118700.0,2.15911252]
[1753024496699,0.25999,118710.0,118700.0,3.39938217]
[1753024496895,0.11,118710.0,118700.0,3.61454446]
[1753024497105,0.11,118710.0,118700.0,1.86050446]
[1753024497299,0.11,118710.0,118700.0,2.44954446]
[1753024498307,0.11,118710.0,118700.0,2.4798482]
[1753024498804,0.00058991,118710.0,118700.0,2.57248548]
[1753024499401,0.00058991,118710.0,118700.0,2.46675209]
[1753024499901,0.00058991,118710.0,118700.0,2.2515898]
[1753024500103,0.24540991,118710.0,118700.0,2.20422802]
[1753024500804,0.25707991,118710.0,118700.0,2.20422802]
[1753024501101,0.18550991,118710.0,118700.0,2.20422802]
[1753024501691,0.12975991,118710.0,118700.0,2.20422802]
[1753024502701,0.00058991,118710.0,118700.0,2.20422802]
[1753024503206,0.00058991,118710.0,118700.0,2.41939031]
[1753024503606,0.00058991,118710.0,118700.0,2.20422802]
[1753024504309,0.00058991,118710.0,118700.0,2.41939031]
[1753024504704,0.172063,118730.0,118720.0,0.3820785]
[1753024504911,0.122063,118730.0,118720.0,2.44288308]
[1753024505300,0.0106608,118730.0,118720.0,2.51823858]
[1753024505501,0.02364,118740.0,118730.0,0.2602943]
[1753024505704,0.09364,118740.0,118730.0,1.03338209]
[1753024506100,0.09364,118740.0,118730.0,0.95802659]
[1753024506300,0.09364,118740.0,118730.0,1.03338209]
[1753024506602,0.32649,118740.0,118730.0,0.95802659]
[1753024506800,0.32649,118740.0,118730.0,1.60718438]
[1753024507411,0.32649,118740.0,118730.0,1.01839549]
[1753024507712,0.32649,118740.0,118730.0,1.60719549]
[1753024507909,1.0240901,118740.0,118730.0,0.2287432]
[1753024508108,0.87845239,118740.0,118730.0,0.8175032]
[1753024508407,0.4248643,118730.0,118720.0,0.2708448]
[1753024508607,0.5348643,118730.0,118720.0,0.8596048]
[1753024508802,0.5348643,118730.0,118720.0,0.7992359]
[1753024509003,0.5348643,118730.0,118720.0,0.42563819]
[1753024509204,0.4012385,118720.0,118710.0,0.62004369]
[1753024509518,0.5448785,118720.0,118710.0,0.4048814]
[1753024509810,0.37649,118720.0,118710.0,0.62004369]
[1753024509997,0.5448785,118720.0,118710.0,1.14839479]
[1753024510603,0.5448785,118720.0,118710.0,1.14939479]
[1753024510898,0.5448785,118720.0,118710.0,1.21076369]
[1753024511103,0.5448785,118720.0,118710.0,0.9956014]
[1753024511298,0.5448785,118720.0,118710.0,0.9352325]
[1753024513716,0.5448785,118720.0,118710.0,0.8931322]
[1753024513908,0.5448785,118720.0,118710.0,0.8510319]
[1753024514615,0.5448785,118720.0,118710.0,1.10251307]
[1753024514811,0.5448785,118720.0,118710.0,0.93412117]
[1753024515209,0.9056785,118720.0,118710.0,0.0349]
[1753024515509,0.9056785,118720.0,118710.0,0.6510089]
[1753024516310,1.0741505,118720.0,118710.0,0.6510089]
[1753024516515,1.32563167,118720.0,118710.0,0.59064]
[1753024516717,1.15715967,118720.0,118710.0,0.5906]
[1753024517109,0.9056785,118720.0,118710.0,0.5906]
[1753024518014,1.3241505,118720.0,118710.0,0.5906]
[1753024519920,0.4248926,118710.0,118700.0,0.1380481]
[1753024520123,1.14717377,118710.0,118700.0,0.7266081]
[1753024520421,1.31566177,118710.0,118700.0,0.7266081]
[1753024520816,1.0641806,118710.0,118700.0,0.65617453]
[1753024521017,1.3141806,118710.0,118700.0,0.65917453]
[1753024521216,1.31566177,118710.0,118700.0,0.65917453]
[1753024521620,1.56566177,118710.0,118700.0,0.04561453]
[1753024521816,0.4012669,118700.0,118690.0,0.6489289]
[1753024522120,0.8957069,118700.0,118690.0,0.6489289]
[1753024522320,1.08316196,118700.0,118690.0,0.58856]
[1753024522523,1.08316196,118700.0,118690.0,0.65509017]
[1753024523421,1.08316196,118700.0,118690.0,0.6651654]
[1753024524327,1.08316196,118700.0,118690.0,0.6671654]
[1753024524628,0.91466596,118700.0,118690.0,0.6691654]
[1753024527626,0.1684594,118670.0,118660.0,0.23739497]
[1753024527824,0.9134194,118670.0,118660.0,0.78571047]
[1753024528221,0.5526194,118670.0,118660.0,1.04523407]
[1753024528422,0.5526194,118670.0,118660.0,1.12074071]
[1753024528620,0.5526194,118670.0,118660.0,0.95226711]
[1753024528826,0.5526194,118670.0,118660.0,0.54208972]
[1753024529123,0.5526194,118670.0,118660.0,1.16596972]
[1753024529327,0.5526194,118670.0,118660.0,1.14922475]
[1753024529724,0.5526194,118670.0,118660.0,1.76150592]
[1753024529925,0.5526194,118670.0,118660.0,1.17302592]
[1753024530124,0.5526194,118670.0,118660.0,1.76654592]
[1753024530723,0.5526194,118670.0,118660.0,1.23227232]
[1753024531024,0.5536194,118670.0,118660.0,1.23227232]
[1753024531324,0.5536194,118670.0,118660.0,1.59307232]
[1753024531525,0.5536194,118670.0,118660.0,1.76154592]
[1753024531726,0.5526194,118670.0,118660.0,1.76154592]
[1753024531920,0.5576194,118670.0,118660.0,1.76254592]
[1753024532939,0.2934594,118670.0,118660.0,1.76254592]
[1753024533226,0.05238547,118670.0,118660.0,2.40039093]
[1753024533535,0.05238547,118670.0,118660.0,2.97043221]
[1753024533925,0.04938547,118670.0,118660.0,2.97043221]
[1753024534427,0.04738547,118670.0,118660.0,2.96943221]
[1753024534627,0.21584487,118670.0,118660.0,2.97043221]
[1753024535222,0.21584487,118670.0,118660.0,3.00738811]
[1753024535423,0.21584487,118670.0,118660.0,3.08274361]
[1753024536230,0.37461487,118670.0,118660.0,3.08474361]
[1753024536532,0.37461487,118670.0,118660.0,3.08484397]
[1753024537127,0.37461487,118670.0,118660.0,2.72404397]
[1753024537334,0.28672487,118670.0,118660.0,3.00938811]
[1753024538138,0.11826547,118670.0,118660.0,3.00938811]
[1753024538437,0.21584487,118670.0,118660.0,3.00938811]
[1753024540534,0.04738547,118670.0,118660.0,3.00938811]
[1753024540936,0.04738547,118670.0,118660.0,3.08484397]
[1753024542131,0.04738547,118670.0,118660.0,3.00938811]
[1753024542733,0.04738547,118670.0,118660.0,3.08484397]
[1753024543334,0.09487547,118670.0,118660.0,3.08484397]
[1753024543730,0.09487547,118670.0,118660.0,3.44564397]
[1753024544129,0.09487547,118670.0,118660.0,2.72404397]
[1753024544336,0.09487547,118670.0,118660.0,3.44564397]
[1753024544640,0.11826547,118670.0,118660.0,3.44564397]
[1753024544825,0.20615547,118670.0,118660.0,3.44564397]
[1753024545535,0.11826547,118670.0,118660.0,3.44564397]
[1753024546736,0.11826547,118670.0,118660.0,3.37018811]
[1753024547934,0.04738547,118670.0,118660.0,3.37018811]
[1753024548239,0.04738547,118670.0,118660.0,3.72018811]
[1753024549441,0.04738547,118670.0,118660.0,3.8259215]
[1753024549739,0.04738547,118670.0,118660.0,3.4759215]
[1753024550435,0.24983547,118670.0,118660.0,3.4756415]
[1753024550641,0.48000487,118670.0,118660.0,1.70973143]
[1753024550942,0.48000487,118670.0,118660.0,0.5456711]
[1753024551139,0.84080487,118670.0,118660.0,0.1848711]
[1753024551345,0.84080487,118670.0,118660.0,0.7730311]
[1753024551742,0.84180487,118670.0,118660.0,0.84777321]
[1753024551939,0.84180487,118670.0,118660.0,0.15158354]
[1753024552142,0.8608041,118670.0,118660.0,0.15158354]
[1753024552343,0.8608041,118670.0,118660.0,0.66400143]
[1753024553442,0.8608041,118670.0,118660.0,0.13642581]
[1753024553648,0.8638041,118670.0,118660.0,0.06158438]
[1753024553838,0.8638041,118670.0,118660.0,0.64970438]
[1753024555644,0.8638041,118670.0,118660.0,0.71566475]
[1753024555845,0.8638041,118670.0,118660.0,0.72565944]
[1753024556046,1.07861468,118670.0,118660.0,0.72565944]
[1753024556847,0.8638041,118670.0,118660.0,0.72565944]
[1753024557045,0.8638041,118670.0,118660.0,0.13753944]
[1753024557046,1.07861468,118670.0,118660.0,0.13753944]
[1753024557345,1.07861468,118670.0,118660.0,0.72561944]
[1753024557546,1.07861468,118670.0,118660.0,0.71562475]
[1753024557748,1.07861468,118670.0,118660.0,0.12754475]
[1753024558543,1.07861468,118670.0,118660.0,0.71562475]
[1753024559951,1.24715868,118670.0,118660.0,0.64966438]
[1753024560751,1.24715868,118670.0,118660.0,0.06158438]
[1753024560952,1.49715868,118670.0,118660.0,0.001]
[1753024562150,1.83519868,118670.0,118660.0,0.001]
[1753024562554,1.24715868,118670.0,118660.0,0.001]
[1753024562854,2.32819868,118670.0,118660.0,0.001]
[1753024563054,1.3568041,118670.0,118660.0,0.001]
[1753024565749,1.57161468,118670.0,118660.0,0.001]
[1753024574261,1.3568041,118670.0,118660.0,0.001]
[1753024574456,1.57161468,118670.0,118660.0,0.001]
[1753024574963,1.57161468,118670.0,118660.0,0.06158438]
[1753024579156,1.3568041,118670.0,118660.0,0.06158438]
[1753024579361,1.57161468,118670.0,118660.0,0.06158438]
[1753024582371,1.3568041,118670.0,118660.0,0.06158438]
[1753024582670,1.57161468,118670.0,118660.0,0.06158438]
[1753024584767,0.9295135,118660.0,118650.0,0.0037513]
[1753024585070,0.10198,118650.0,118630.0,0.96545828]
[1753024585275,0.4299519,118640.0,118630.0,0.79127828]
[1753024585466,0.5399519,118640.0,118630.0,0.79127828]
[1753024585771,0.5399519,118640.0,118630.0,0.80094772]
[1753024586771,0.5399519,118640.0,118630.0,0.86058772]
[1753024586968,0.5399519,118640.0,118630.0,1.2439145]
[1753024587370,0.5399519,118640.0,118630.0,1.14422676]
[1753024587873,0.5399519,118640.0,118630.0,1.14522676]
[1753024588066,0.5399519,118640.0,118630.0,1.67654286]
[1753024588266,0.5399519,118640.0,118630.0,1.50802676]
[1753024589272,0.5399519,118640.0,118630.0,1.67654296]
[1753024589972,0.5399519,118640.0,118630.0,1.46173238]
[1753024590173,0.5399519,118640.0,118630.0,1.67654296]
[1753024590577,0.5399519,118640.0,118630.0,1.50802676]
[1753024591877,0.5399519,118640.0,118630.0,1.14722676]
[1753024592077,0.5399519,118640.0,118630.0,1.31574286]
[1753024592375,0.3253719,118640.0,118630.0,1.67654286]
[1753024592677,0.2785019,118640.0,118630.0,1.67654286]
[1753024593280,0.11,118640.0,118630.0,1.89135344]
[1753024593473,0.11,118640.0,118630.0,1.99738311]
[1753024593873,0.11,118640.0,118630.0,1.78257253]
[1753024594778,0.2785019,118640.0,118630.0,1.78257253]
[1753024595577,0.2785019,118640.0,118630.0,1.67654286]
[1753024596778,0.16469629,118640.0,118630.0,1.67654286]
[1753024596979,0.20469629,118640.0,118630.0,1.67654286]
[1753024598780,0.20469629,118640.0,118630.0,1.78263011]
[1753024599078,0.25156629,118640.0,118630.0,1.78263011]
[1753024599777,0.25156629,118640.0,118630.0,1.67654286]
[1753024600482,0.25156629,118640.0,118630.0,1.46173228]
[1753024600682,0.46614629,118640.0,118630.0,1.67642286]
[1753024600873,0.46614629,118640.0,118630.0,0.75194465]
[1753024601077,0.68095687,118640.0,118630.0,0.20452465]
[1753024601273,0.68095687,118640.0,118630.0,0.76178099]
[1753024601577,0.68095687,118640.0,118630.0,0.74662478]
[1753024601777,1.04175687,118640.0,118630.0,0.74662478]
[1753024602383,0.68095687,118640.0,118630.0,0.68599618]
[1753024602582,0.68095687,118640.0,118630.0,0.76178099]
[1753024602784,0.46614629,118640.0,118630.0,0.76178099]
[1753024603979,0.46614629,118640.0,118630.0,0.93029709]
[1753024604284,0.68095687,118640.0,118630.0,0.93029709]
[1753024604785,0.68095687,118640.0,118630.0,0.93029719]
[1753024605085,0.46614629,118640.0,118630.0,0.93029719]
[1753024605578,0.46614629,118640.0,118630.0,0.98697719]
[1753024606378,0.46614629,118640.0,118630.0,0.81846099]
[1753024606683,0.46614629,118640.0,118630.0,0.98697719]
[1753024606982,1.04175687,118640.0,118630.0,0.81846099]
[1753024607179,1.04175687,118640.0,118630.0,0.74267618]
[1753024608381,1.04175687,118640.0,118630.0,0.80326641]
[1753024608984,0.46614629,118640.0,118630.0,0.80326641]
[1753024609582,0.46614629,118640.0,118630.0,0.78632813]
[1753024609884,0.46614629,118640.0,118630.0,0.81678813]
[1753024610092,0.46614629,118640.0,118630.0,0.82853813]
[1753024610293,0.46614629,118640.0,118630.0,0.91350813]
[1753024610892,0.46614629,118640.0,118630.0,0.82853813]
[1753024611282,0.68095687,118640.0,118630.0,0.82853813]
[1753024611490,1.04175687,118640.0,118630.0,0.14208813]
[1753024611786,1.21034087,118640.0,118630.0,0.01845037]
[1753024611987,1.21034087,118640.0,118620.0,0.58752]
[1753024611988,0.2595061,118630.0,118620.0,0.58752]
[1753024612289,1.11557668,118630.0,118620.0,0.58752]
[1753024612492,1.11557668,118630.0,118620.0,0.59704447]
[1753024612987,1.11557668,118630.0,118620.0,0.58752]
[1753024614088,1.11557668,118630.0,118620.0,0.58952]
[1753024614491,0.9017661,118630.0,118620.0,0.6010024]
[1753024614787,1.11657668,118630.0,118620.0,0.6010024]
[1753024615684,1.11657668,118630.0,118620.0,0.0134824]
[1753024616093,0.2714404,118620.0,118610.0,0.08570407]
[1753024616294,1.11948098,118620.0,118610.0,0.67326407]
[1753024616685,1.11948098,118620.0,118610.0,0.65599985]
[1753024617584,1.11948098,118620.0,118610.0,0.66551093]
[1753024617798,1.11948098,118620.0,118610.0,0.66851093]
[1753024617989,1.12048098,118620.0,118610.0,0.67151093]
[1753024618496,1.12048098,118620.0,118610.0,0.08395093]
[1753024618880,1.12148098,118620.0,118610.0,0.08095093]
[1753024619098,1.12048098,118620.0,118610.0,0.01051108]
[1753024619300,1.12548098,118620.0,118610.0,0.01051108]
[1753024619791,1.71304098,118620.0,118610.0,0.01051108]
[1753024620796,1.71304098,118620.0,118610.0,0.001]
[1753024621092,0.4338846,118610.0,118600.0,0.01726706]
[1753024621297,1.13949518,118610.0,118600.0,0.01726706]
[1753024622297,1.14049518,118610.0,118600.0,0.03477693]
[1753024622497,1.14549518,118610.0,118600.0,0.01826706]
[1753024622991,0.9306846,118610.0,118600.0,0.07970706]
[1753024623997,0.9306846,118610.0,118600.0,0.12166706]
[1753024624197,0.9306846,118610.0,118600.0,0.21452706]
[1753024625600,0.9306846,118610.0,118600.0,0.12166706]
[1753024625899,0.9306846,118610.0,118600.0,0.13900812]
[1753024626297,0.5698846,118610.0,118600.0,1.24963808]
[1753024626501,0.5698846,118610.0,118600.0,1.89774757]
[1753024626502,0.3045446,118610.0,118600.0,1.89774757]
[1753024626904,0.3045446,118610.0,118600.0,1.83727808]
[1753024627202,0.3045446,118610.0,118600.0,1.89774757]
[1753024628906,0.3045446,118610.0,118600.0,1.68293699]
[1753024629699,0.3045446,118610.0,118600.0,1.89774757]
[1753024630101,0.3045446,118610.0,118600.0,1.83727808]
[1753024630506,0.3045446,118610.0,118600.0,1.89777481]
[1753024630707,0.3528746,118610.0,118600.0,1.68296423]
[1753024631203,0.3528746,118610.0,118600.0,1.83727808]
[1753024631607,0.3528746,118610.0,118600.0,1.89778954]
[1753024632108,0.3528746,118610.0,118600.0,1.83727808]
[1753024632507,0.3045446,118610.0,118600.0,1.40765692]
[1753024632708,0.3045446,118610.0,118600.0,1.24963808]
[1753024632903,0.3045446,118610.0,118600.0,1.83723808]
[1753024633208,0.3045446,118610.0,118600.0,1.8977569]
[1753024633908,0.3045446,118610.0,118600.0,1.83723808]
[1753024634706,0.32983,118630.0,118600.0,1.66867928]
[1753024634900,0.3830806,118630.0,118620.0,0.94355155]
[1753024635100,0.3830806,118630.0,118620.0,1.53111155]
[1753024635706,0.17243,118630.0,118620.0,1.53111155]
[1753024636201,0.15683,118630.0,118620.0,1.53211155]
[1753024636507,0.017,118630.0,118620.0,1.47158098]
[1753024637108,0.019,118630.0,118620.0,1.47158098]
[1753024637708,0.15883,118630.0,118620.0,1.47158098]
[1753024637910,0.15283,118630.0,118620.0,1.47258098]
[1753024638312,0.15083,118630.0,118620.0,1.47258098]
[1753024638506,0.15083,118630.0,118620.0,0.88702098]
[1753024638709,0.15083,118630.0,118620.0,1.47454098]
[1753024639109,0.15083,118630.0,118620.0,1.55032579]
[1753024640418,0.15083,118630.0,118620.0,1.69012579]
[1753024641210,0.17343,118630.0,118620.0,1.69012579]
[1753024641412,0.3419461,118630.0,118620.0,1.69012579]
[1753024642226,0.17343,118630.0,118620.0,1.69012579]
[1753024642417,0.3419461,118630.0,118620.0,1.61434098]
[1753024643217,0.3419461,118630.0,118620.0,1.69012579]
[1753024644822,0.17343,118630.0,118620.0,1.69012579]
[1753024645226,0.3419461,118630.0,118620.0,1.69012579]
[1753024646524,0.3419461,118630.0,118620.0,1.61434098]